[Event "Titled Tuesday Blitz May 23 Early 2023"]
[White "Bacrot, Etienne"]
[Black "Vakhlamov, Igor L."]
[WhiteFideId "605506"]
[BlackFideId "24126748"]
[WhiteElo "2672"]
[BlackElo "2407"]
[Result "1-0"]
[Round "10"]
[TimeControl "180+2"]
[Date "2023.05.23"]
[WhiteClock "0:00:08"]
[BlackClock "0:00:05"]

1. e4 {[%clk 0:03:00]}  c5 {[%clk 0:02:59]} 2. Nf3 {[%clk 0:03:00]}  e6 {[%clk 0:03:00]} 3. d4 {[%clk 0:02:59]}  cxd4 {[%clk 0:03:01]} 4. Nxd4 {[%clk 0:02:59]}  Nf6 {[%clk 0:03:01]} 5. Nc3 {[%clk 0:02:59]}  Nc6 {[%clk 0:03:02]} 6. Nxc6 {[%clk 0:02:58]}  bxc6 {[%clk 0:03:03]} 7. e5 {[%clk 0:02:57]}  Nd5 {[%clk 0:03:04]} 8. Ne4 {[%clk 0:02:57]}  Qc7 {[%clk 0:03:04]} 9. f4 {[%clk 0:02:53]}  Rb8 {[%clk 0:03:04]} 10. a3 {[%clk 0:02:41]}  Qb6 {[%clk 0:03:04]} 11. Qd3 {[%clk 0:02:31]}  Be7 {[%clk 0:02:31]} 12. c4 {[%clk 0:02:26]}  f5 {[%clk 0:02:31]} 13. Nf2 {[%clk 0:01:46]}  Bc5 {[%clk 0:02:04]} 14. Nd1 {[%clk 0:01:45]}  Ba6 {[%clk 0:01:42]} 15. Qd2 {[%clk 0:01:29]}  Nc7 {[%clk 0:01:02]} 16. b4 {[%clk 0:01:29]}  Be7 {[%clk 0:01:02]} 17. Qf2 {[%clk 0:01:18]}  Qxf2+ {[%clk 0:00:49]} 18. Nxf2 {[%clk 0:01:14]}  c5 {[%clk 0:00:50]} 19. b5 {[%clk 0:01:13]}  Bb7 {[%clk 0:00:50]} 20. Be3 {[%clk 0:01:14]}  Rc8 {[%clk 0:00:17]} 21. a4 {[%clk 0:01:06]}  O-O {[%clk 0:00:17]} 22. O-O-O {[%clk 0:01:05]}  Rfd8 {[%clk 0:00:16]} 23. Rg1 {[%clk 0:01:01]}  d5 {[%clk 0:00:16]} 24. exd6 {[%clk 0:01:01]}  Rxd6 {[%clk 0:00:16]} 25. Nd3 {[%clk 0:00:45]}  Ne8 {[%clk 0:00:17]} 26. Be2 {[%clk 0:00:40]}  Rdd8 {[%clk 0:00:16]} 27. Bf3 {[%clk 0:00:33]}  Bxf3 {[%clk 0:00:12]} 28. gxf3 {[%clk 0:00:34]}  Nd6 {[%clk 0:00:12]} 29. Ne5 {[%clk 0:00:33]}  Kf8 {[%clk 0:00:06]} 30. Nc6 {[%clk 0:00:23]}  Rxc6 {[%clk 0:00:06]} 31. bxc6 {[%clk 0:00:23]}  Rc8 {[%clk 0:00:07]} 32. Bxc5 {[%clk 0:00:19]}  Rxc6 {[%clk 0:00:08]} 33. Bxd6 {[%clk 0:00:18]}  Bxd6 {[%clk 0:00:09]} 34. Kb2 {[%clk 0:00:18]}  Bxf4 {[%clk 0:00:08]} 35. Kb3 {[%clk 0:00:18]}  Rb6+ {[%clk 0:00:08]} 36. Kc2 {[%clk 0:00:18]}  Rc6 {[%clk 0:00:08]} 37. Kb3 {[%clk 0:00:18]}  Rb6+ {[%clk 0:00:09]} 38. Kc3 {[%clk 0:00:16]}  Be5+ {[%clk 0:00:08]} 39. Kd3 {[%clk 0:00:15]}  Bxh2 {[%clk 0:00:08]} 40. Rh1 {[%clk 0:00:15]}  Bf4 {[%clk 0:00:07]} 41. Rxh7 {[%clk 0:00:15]}  Rd6+ {[%clk 0:00:08]} 42. Ke2 {[%clk 0:00:15]}  Rc6 {[%clk 0:00:09]} 43. Rh8+ {[%clk 0:00:15]}  Kf7 {[%clk 0:00:09]} 44. Kd3 {[%clk 0:00:15]}  Rd6+ {[%clk 0:00:09]} 45. Kc2 {[%clk 0:00:15]}  Rc6 {[%clk 0:00:10]} 46. Kb3 {[%clk 0:00:15]}  Rb6+ {[%clk 0:00:10]} 47. Ka2 {[%clk 0:00:15]}  Rc6 {[%clk 0:00:10]} 48. Rd7+ {[%clk 0:00:15]}  Kf6 {[%clk 0:00:10]} 49. Kb3 {[%clk 0:00:15]}  Rb6+ {[%clk 0:00:10]} 50. Kc2 {[%clk 0:00:15]}  Rb4 {[%clk 0:00:10]} 51. Kc3 {[%clk 0:00:15]}  Rxa4 {[%clk 0:00:10]} 52. Rf8+ {[%clk 0:00:14]}  Kg5 {[%clk 0:00:07]} 53. Kb3 {[%clk 0:00:14]}  Ra1 {[%clk 0:00:07]} 54. Rxg7+ {[%clk 0:00:13]}  Kh6 {[%clk 0:00:06]} 55. Rg2 {[%clk 0:00:13]}  Kh7 {[%clk 0:00:04]} 56. Rf7+ {[%clk 0:00:13]}  Kh8 {[%clk 0:00:04]} 57. Re7 {[%clk 0:00:12]}  Rb1+ {[%clk 0:00:04]} 58. Ka2 {[%clk 0:00:12]}  Rf1 {[%clk 0:00:04]} 59. c5 {[%clk 0:00:08]}  Rxf3 {[%clk 0:00:04]} 60. Rc2 {[%clk 0:00:08]}  Bg5 {[%clk 0:00:03]} 61. Rd7 {[%clk 0:00:07]}  Bf4 {[%clk 0:00:02]} 62. c6 {[%clk 0:00:08]}  Rg3 {[%clk 0:00:02]} 63. c7 {[%clk 0:00:08]}  Bxc7 {[%clk 0:00:03]} 64. Rcxc7 {[%clk 0:00:08]}  f4 {[%clk 0:00:04]} 65. Rd8+ {[%clk 0:00:08]}  Rg8 {[%clk 0:00:04]} 66. Rd3 {[%clk 0:00:08]}  e5 {[%clk 0:00:05]} 67. Rh3# {[%clk 0:00:08]} 1-0


[Site "https://www.chess.com"]

[Event "Titled Tuesday Blitz May 23 Early 2023"]
[White "Alex_Sahakyan2006"]
[Black "Salinas Herrera, Pablo"]
[BlackFideId "3407128"]
[WhiteElo "2688"]
[BlackElo "2546"]
[Result "1-0"]
[Round "10"]
[TimeControl "180+2"]
[Date "2023.05.23"]
[WhiteClock "0:00:27"]
[BlackClock "0:00:00"]

1. d4 {[%clk 0:02:54]}  d5 {[%clk 0:03:00]} 2. Nf3 {[%clk 0:02:52]}  Nf6 {[%clk 0:03:00]} 3. Bf4 {[%clk 0:02:53]}  e6 {[%clk 0:03:00]} 4. e3 {[%clk 0:02:52]}  Bd6 {[%clk 0:03:01]} 5. Bg3 {[%clk 0:02:53]}  O-O {[%clk 0:03:01]} 6. Nbd2 {[%clk 0:02:53]}  c5 {[%clk 0:03:02]} 7. c3 {[%clk 0:02:53]}  Qc7 {[%clk 0:03:02]} 8. Bd3 {[%clk 0:02:46]}  Nbd7 {[%clk 0:03:02]} 9. O-O {[%clk 0:02:42]}  Bxg3 {[%clk 0:03:02]} 10. hxg3 {[%clk 0:02:41]}  e5 {[%clk 0:03:03]} 11. dxe5 {[%clk 0:02:42]}  Nxe5 {[%clk 0:03:04]} 12. Nxe5 {[%clk 0:02:43]}  Qxe5 {[%clk 0:03:04]} 13. Nf3 {[%clk 0:02:44]}  Qe7 {[%clk 0:03:05]} 14. Qa4 {[%clk 0:02:43]}  h6 {[%clk 0:03:04]} 15. Qf4 {[%clk 0:02:40]}  Re8 {[%clk 0:03:01]} 16. Rad1 {[%clk 0:02:36]}  Bd7 {[%clk 0:03:00]} 17. Rd2 {[%clk 0:02:36]}  Bc6 {[%clk 0:02:52]} 18. Rfd1 {[%clk 0:02:33]}  Rad8 {[%clk 0:02:49]} 19. Bb1 {[%clk 0:02:26]}  Rd6 {[%clk 0:02:37]} 20. e4 {[%clk 0:01:59]}  g5 {[%clk 0:01:09]} 21. Nxg5 {[%clk 0:01:18]}  hxg5 {[%clk 0:01:09]} 22. Qxg5+ {[%clk 0:01:17]}  Kh8 {[%clk 0:01:08]} 23. exd5 {[%clk 0:01:07]}  Qe5 {[%clk 0:00:10]} 24. Qh6+ {[%clk 0:00:47]}  Kg8 {[%clk 0:00:09]} 25. dxc6 {[%clk 0:00:47]}  Rxd2 {[%clk 0:00:08]} 26. Qxd2 {[%clk 0:00:48]}  bxc6 {[%clk 0:00:05]} 27. f3 {[%clk 0:00:48]}  Re7 {[%clk 0:00:05]} 28. Qf2 {[%clk 0:00:38]}  Kg7 {[%clk 0:00:04]} 29. g4 {[%clk 0:00:38]}  Qf4 {[%clk 0:00:03]} 30. g3 {[%clk 0:00:34]}  Qc7 {[%clk 0:00:02]} 31. g5 {[%clk 0:00:30]}  Nd5 {[%clk 0:00:02]} 32. Qh2 {[%clk 0:00:28]}  Re6 {[%clk 0:00:00]} 33. Bf5 {[%clk 0:00:27]} 1-0


[Site "https://www.chess.com"]

[Event "Titled Tuesday Blitz May 23 Early 2023"]
[White "Volkov, Maksim"]
[Black "Zhigalko, Sergei"]
[WhiteFideId "54123070"]
[BlackFideId "13502956"]
[WhiteElo "2297"]
[BlackElo "2626"]
[Result "1-0"]
[Round "10"]
[TimeControl "180+2"]
[Date "2023.05.23"]
[WhiteClock "0:00:04"]
[BlackClock "0:00:00"]

1. d4 {[%clk 0:03:00]}  Nf6 {[%clk 0:03:00]} 2. c4 {[%clk 0:03:01]}  e6 {[%clk 0:03:00]} 3. g3 {[%clk 0:03:00]}  c5 {[%clk 0:03:01]} 4. d5 {[%clk 0:03:00]}  exd5 {[%clk 0:03:01]} 5. cxd5 {[%clk 0:03:01]}  d6 {[%clk 0:03:02]} 6. Nc3 {[%clk 0:03:00]}  g6 {[%clk 0:03:03]} 7. Bg2 {[%clk 0:03:01]}  Bg7 {[%clk 0:03:04]} 8. Nf3 {[%clk 0:03:01]}  O-O {[%clk 0:03:04]} 9. O-O {[%clk 0:03:00]}  Re8 {[%clk 0:03:05]} 10. Bf4 {[%clk 0:03:00]}  a6 {[%clk 0:03:05]} 11. a4 {[%clk 0:02:59]}  Nh5 {[%clk 0:03:06]} 12. Bg5 {[%clk 0:02:53]}  Qc7 {[%clk 0:03:06]} 13. Qd2 {[%clk 0:02:48]}  Nd7 {[%clk 0:03:06]} 14. Rfe1 {[%clk 0:02:45]}  Rb8 {[%clk 0:03:06]} 15. e4 {[%clk 0:02:42]}  b5 {[%clk 0:03:05]} 16. axb5 {[%clk 0:02:42]}  axb5 {[%clk 0:03:06]} 17. Bf1 {[%clk 0:02:42]}  c4 {[%clk 0:02:19]} 18. Nd4 {[%clk 0:01:56]}  b4 {[%clk 0:02:19]} 19. Ncb5 {[%clk 0:01:32]}  Qc5 {[%clk 0:02:19]} 20. Rec1 {[%clk 0:01:28]}  Ne5 {[%clk 0:02:03]} 21. Ra5 {[%clk 0:01:08]}  Bd7 {[%clk 0:01:49]} 22. Be3 {[%clk 0:00:17]}  Bxb5 {[%clk 0:01:38]} 23. Kh1 {[%clk 0:00:18]}  Ng4 {[%clk 0:01:20]} 24. Rxb5 {[%clk 0:00:05]}  Rxb5 {[%clk 0:01:17]} 25. Rxc4 {[%clk 0:00:06]}  Nxe3 {[%clk 0:00:57]} 26. fxe3 {[%clk 0:00:05]}  Nf6 {[%clk 0:00:05]} 27. Rxc5 {[%clk 0:00:05]}  Rxc5 {[%clk 0:00:06]} 28. Qxb4 {[%clk 0:00:03]}  Nxe4 {[%clk 0:00:06]} 29. Kg2 {[%clk 0:00:03]}  h5 {[%clk 0:00:05]} 30. Bd3 {[%clk 0:00:02]}  Nf6 {[%clk 0:00:05]} 31. e4 {[%clk 0:00:01]}  Nxe4 {[%clk 0:00:03]} 32. Nb3 {[%clk 0:00:02]}  Rxd5 {[%clk 0:00:01]} 33. Bxe4 {[%clk 0:00:02]}  Rde5 {[%clk 0:00:02]} 34. Bf3 {[%clk 0:00:02]}  d5 {[%clk 0:00:03]} 35. Qd2 {[%clk 0:00:02]}  Kh7 {[%clk 0:00:02]} 36. Nd4 {[%clk 0:00:03]}  R5e7 {[%clk 0:00:02]} 37. b4 {[%clk 0:00:03]}  Rc7 {[%clk 0:00:02]} 38. Nb5 {[%clk 0:00:03]}  Rb8 {[%clk 0:00:01]} 39. Nxc7 {[%clk 0:00:03]}  Rb7 {[%clk 0:00:01]} 40. Nxd5 {[%clk 0:00:04]}  Bh6 {[%clk 0:00:00]} 41. Nf6+ {[%clk 0:00:04]} 1-0


[Site "https://www.chess.com"]

[Event "Titled Tuesday Blitz May 23 Early 2023"]
[White "Narayanan, Srinath"]
[Black "Samunenkov, Ihor"]
[WhiteFideId "5018420"]
[BlackFideId "14187086"]
[WhiteElo "2438"]
[BlackElo "2457"]
[Result "0-1"]
[Round "10"]
[TimeControl "180+2"]
[Date "2023.05.23"]
[WhiteClock "0:00:00"]
[BlackClock "0:00:05"]

1. Nf3 {[%clk 0:03:00]}  Nf6 {[%clk 0:02:54]} 2. c4 {[%clk 0:03:01]}  e6 {[%clk 0:02:53]} 3. d4 {[%clk 0:03:00]}  d5 {[%clk 0:02:53]} 4. Nc3 {[%clk 0:03:00]}  a6 {[%clk 0:02:52]} 5. Bg5 {[%clk 0:02:54]}  dxc4 {[%clk 0:02:49]} 6. e4 {[%clk 0:02:54]}  b5 {[%clk 0:02:49]} 7. e5 {[%clk 0:02:54]}  h6 {[%clk 0:02:50]} 8. Bh4 {[%clk 0:02:47]}  g5 {[%clk 0:02:50]} 9. Nxg5 {[%clk 0:02:47]}  hxg5 {[%clk 0:02:51]} 10. Bxg5 {[%clk 0:02:48]}  Nbd7 {[%clk 0:02:50]} 11. exf6 {[%clk 0:02:47]}  Bh6 {[%clk 0:02:32]} 12. Qf3 {[%clk 0:02:35]}  Rb8 {[%clk 0:02:26]} 13. Bxh6 {[%clk 0:02:32]}  Rxh6 {[%clk 0:02:26]} 14. h4 {[%clk 0:02:32]}  Bb7 {[%clk 0:02:20]} 15. Qe3 {[%clk 0:02:32]}  Qxf6 {[%clk 0:02:14]} 16. h5 {[%clk 0:02:31]}  Nb6 {[%clk 0:02:02]} 17. Rh3 {[%clk 0:02:23]}  Rd8 {[%clk 0:01:52]} 18. g4 {[%clk 0:02:15]}  Rh8 {[%clk 0:01:35]} 19. O-O-O {[%clk 0:02:15]}  b4 {[%clk 0:01:18]} 20. Ne4 {[%clk 0:02:04]}  Bxe4 {[%clk 0:01:17]} 21. Qxe4 {[%clk 0:02:05]}  Qxf2 {[%clk 0:01:14]} 22. Rf3 {[%clk 0:00:56]}  Qh4 {[%clk 0:01:12]} 23. Be2 {[%clk 0:00:38]}  c3 {[%clk 0:01:01]} 24. bxc3 {[%clk 0:00:37]}  bxc3 {[%clk 0:00:55]} 25. Qc6+ {[%clk 0:00:34]}  Rd7 {[%clk 0:00:51]} 26. Rxc3 {[%clk 0:00:34]}  Qg5+ {[%clk 0:00:46]} 27. Kc2 {[%clk 0:00:34]}  Nd5 {[%clk 0:00:39]} 28. Qa8+ {[%clk 0:00:26]}  Rd8 {[%clk 0:00:30]} 29. Qc6+ {[%clk 0:00:27]}  Kf8 {[%clk 0:00:24]} 30. Qc5+ {[%clk 0:00:27]}  Kg7 {[%clk 0:00:18]} 31. Rf3 {[%clk 0:00:28]}  Ne3+ {[%clk 0:00:18]} 32. Rxe3 {[%clk 0:00:18]}  Qxe3 {[%clk 0:00:19]} 33. Rd2 {[%clk 0:00:12]}  Rd5 {[%clk 0:00:16]} 34. Qc3 {[%clk 0:00:07]}  Qxc3+ {[%clk 0:00:14]} 35. Kxc3 {[%clk 0:00:08]}  Rhd8 {[%clk 0:00:14]} 36. Bxa6 {[%clk 0:00:07]}  c5 {[%clk 0:00:14]} 37. Rh2 {[%clk 0:00:07]}  cxd4+ {[%clk 0:00:13]} 38. Kd2 {[%clk 0:00:07]}  Rg5 {[%clk 0:00:08]} 39. h6+ {[%clk 0:00:06]}  Kh8 {[%clk 0:00:07]} 40. Be2 {[%clk 0:00:07]}  Ra8 {[%clk 0:00:05]} 41. Kd3 {[%clk 0:00:03]}  Rxa2 {[%clk 0:00:04]} 42. Rf2 {[%clk 0:00:04]}  Kg8 {[%clk 0:00:01]} 43. h7+ {[%clk 0:00:02]}  Kxh7 {[%clk 0:00:02]} 44. Rxf7+ {[%clk 0:00:02]}  Kg6 {[%clk 0:00:02]} 45. Re7 {[%clk 0:00:03]}  e5 {[%clk 0:00:03]} 46. Bf3 {[%clk 0:00:03]}  Ra3+ {[%clk 0:00:03]} 47. Ke2 {[%clk 0:00:03]}  Re3+ {[%clk 0:00:03]} 48. Kf2 {[%clk 0:00:04]}  Kf6 {[%clk 0:00:04]} 49. Rd7 {[%clk 0:00:04]}  Rg7 {[%clk 0:00:03]} 50. Rd6+ {[%clk 0:00:03]}  Kg5 {[%clk 0:00:04]} 51. Be2 {[%clk 0:00:01]}  Rf7+ {[%clk 0:00:04]} 52. Ke1 {[%clk 0:00:02]}  Ra7 {[%clk 0:00:04]} 53. Kf1 {[%clk 0:00:01]}  Ra1+ {[%clk 0:00:04]} 54. Kf2 {[%clk 0:00:00]}  Ra2 {[%clk 0:00:05]} 0-1


[Site "https://www.chess.com"]

[Event "Titled Tuesday Blitz May 23 Early 2023"]
[White "Domingo Nunez, Ruben"]
[Black "Hansen, Eric"]
[WhiteFideId "22245570"]
[BlackFideId "2606771"]
[WhiteElo "2404"]
[BlackElo "2561"]
[Result "0-1"]
[Round "10"]
[TimeControl "180+2"]
[Date "2023.05.23"]
[WhiteClock "0:00:18"]
[BlackClock "0:01:25"]

1. c4 {[%clk 0:02:54]}  c6 {[%clk 0:02:56]} 2. b3 {[%clk 0:02:54]}  d5 {[%clk 0:02:56]} 3. Bb2 {[%clk 0:02:54]}  Bf5 {[%clk 0:02:53]} 4. Nf3 {[%clk 0:02:53]}  h6 {[%clk 0:02:53]} 5. e3 {[%clk 0:02:54]}  e6 {[%clk 0:02:51]} 6. Be2 {[%clk 0:02:54]}  Nf6 {[%clk 0:02:50]} 7. O-O {[%clk 0:02:54]}  Be7 {[%clk 0:02:49]} 8. h3 {[%clk 0:02:54]}  O-O {[%clk 0:02:49]} 9. Nc3 {[%clk 0:02:55]}  a5 {[%clk 0:02:49]} 10. Rc1 {[%clk 0:02:54]}  Nbd7 {[%clk 0:02:49]} 11. d4 {[%clk 0:02:54]}  Bd6 {[%clk 0:02:42]} 12. Na4 {[%clk 0:02:51]}  Ne4 {[%clk 0:02:41]} 13. Bd3 {[%clk 0:02:49]}  Bh7 {[%clk 0:02:38]} 14. Ne5 {[%clk 0:02:44]}  Nxe5 {[%clk 0:02:32]} 15. dxe5 {[%clk 0:02:45]}  Bb4 {[%clk 0:02:24]} 16. c5 {[%clk 0:02:28]}  Qg5 {[%clk 0:02:03]} 17. a3 {[%clk 0:02:00]}  Bd2 {[%clk 0:01:53]} 18. Rc2 {[%clk 0:01:44]}  Bxe3 {[%clk 0:01:48]} 19. fxe3 {[%clk 0:01:22]}  Qxe3+ {[%clk 0:01:48]} 20. Kh2 {[%clk 0:01:22]}  Qg3+ {[%clk 0:01:48]} 21. Kh1 {[%clk 0:01:21]}  Qg5 {[%clk 0:01:47]} 22. Bxe4 {[%clk 0:01:19]}  Bxe4 {[%clk 0:01:47]} 23. Rcf2 {[%clk 0:01:18]}  Rad8 {[%clk 0:01:41]} 24. Bd4 {[%clk 0:01:15]}  Qg3 {[%clk 0:01:36]} 25. Kg1 {[%clk 0:00:40]}  f5 {[%clk 0:01:36]} 26. exf6 {[%clk 0:00:29]}  e5 {[%clk 0:01:36]} 27. f7+ {[%clk 0:00:20]}  Rxf7 {[%clk 0:01:37]} 28. Bxe5 {[%clk 0:00:20]}  Rxf2 {[%clk 0:01:35]} 29. Bxg3 {[%clk 0:00:18]}  Rxg2+ {[%clk 0:01:34]} 30. Kh1 {[%clk 0:00:19]}  Rxg3+ {[%clk 0:01:35]} 31. Kh2 {[%clk 0:00:20]}  Rg2+ {[%clk 0:01:35]} 32. Kh1 {[%clk 0:00:20]}  Rd2+ {[%clk 0:01:35]} 33. Kg1 {[%clk 0:00:21]}  Rg2+ {[%clk 0:01:30]} 34. Kh1 {[%clk 0:00:21]}  Rd2+ {[%clk 0:01:25]} 35. Kg1 {[%clk 0:00:21]}  Rxd1 {[%clk 0:01:26]} 36. Rxd1 {[%clk 0:00:20]}  Bc2 {[%clk 0:01:26]} 37. Rxd5 {[%clk 0:00:18]}  Rxd5 {[%clk 0:01:25]} 0-1


[Site "https://www.chess.com"]

[Event "Titled Tuesday Blitz May 23 Early 2023"]
[White "Dehtiarov, Roman"]
[Black "Timofeev, Artyom"]
[WhiteFideId "14186640"]
[BlackFideId "4140419"]
[WhiteElo "2189"]
[BlackElo "2586"]
[Result "1/2-1/2"]
[Round "10"]
[TimeControl "180+2"]
[Date "2023.05.23"]
[WhiteClock "0:00:07"]
[BlackClock "0:00:51"]

1. c4 {[%clk 0:02:57]}  e5 {[%clk 0:02:59]} 2. Nc3 {[%clk 0:02:57]}  Bb4 {[%clk 0:02:58]} 3. Nd5 {[%clk 0:02:57]}  Be7 {[%clk 0:02:58]} 4. d4 {[%clk 0:02:56]}  d6 {[%clk 0:02:57]} 5. e4 {[%clk 0:02:53]}  Nc6 {[%clk 0:02:56]} 6. dxe5 {[%clk 0:02:52]}  dxe5 {[%clk 0:02:54]} 7. Nf3 {[%clk 0:02:53]}  Nf6 {[%clk 0:02:53]} 8. Bd3 {[%clk 0:02:50]}  O-O {[%clk 0:02:53]} 9. O-O {[%clk 0:02:49]}  h6 {[%clk 0:02:53]} 10. a3 {[%clk 0:02:43]}  Bc5 {[%clk 0:02:50]} 11. b4 {[%clk 0:02:42]}  Bd4 {[%clk 0:02:51]} 12. Nxd4 {[%clk 0:02:40]}  Nxd4 {[%clk 0:02:50]} 13. Bb2 {[%clk 0:02:39]}  c6 {[%clk 0:02:46]} 14. Nxf6+ {[%clk 0:02:38]}  Qxf6 {[%clk 0:02:45]} 15. Bxd4 {[%clk 0:02:38]}  exd4 {[%clk 0:02:46]} 16. f4 {[%clk 0:02:39]}  Qe7 {[%clk 0:02:42]} 17. Qd2 {[%clk 0:02:38]}  c5 {[%clk 0:02:41]} 18. b5 {[%clk 0:02:38]}  a6 {[%clk 0:02:40]} 19. a4 {[%clk 0:02:38]}  axb5 {[%clk 0:02:40]} 20. axb5 {[%clk 0:02:39]}  Rxa1 {[%clk 0:02:39]} 21. Rxa1 {[%clk 0:02:40]}  b6 {[%clk 0:02:38]} 22. e5 {[%clk 0:02:38]}  Bb7 {[%clk 0:02:38]} 23. Ra7 {[%clk 0:02:36]}  Ra8 {[%clk 0:02:37]} 24. Qa2 {[%clk 0:02:32]}  Qd8 {[%clk 0:02:30]} 25. Rxa8 {[%clk 0:02:19]}  Qxa8 {[%clk 0:02:29]} 26. Qxa8+ {[%clk 0:02:15]}  Bxa8 {[%clk 0:02:29]} 27. g4 {[%clk 0:02:16]}  Kf8 {[%clk 0:02:22]} 28. Kf2 {[%clk 0:02:16]}  Ke7 {[%clk 0:02:22]} 29. f5 {[%clk 0:02:07]}  f6 {[%clk 0:02:18]} 30. e6 {[%clk 0:01:51]}  Bb7 {[%clk 0:02:17]} 31. Kg3 {[%clk 0:01:51]}  Kf8 {[%clk 0:02:08]} 32. Kf4 {[%clk 0:01:50]}  Ke7 {[%clk 0:02:08]} 33. h4 {[%clk 0:01:45]}  Kf8 {[%clk 0:02:07]} 34. g5 {[%clk 0:01:43]}  hxg5+ {[%clk 0:02:07]} 35. hxg5 {[%clk 0:01:42]}  Ke7 {[%clk 0:02:07]} 36. Kg4 {[%clk 0:01:42]}  g6 {[%clk 0:01:29]} 37. fxg6 {[%clk 0:01:22]}  Bc8 {[%clk 0:01:29]} 38. g7 {[%clk 0:00:19]}  Bxe6+ {[%clk 0:01:27]} 39. Kf4 {[%clk 0:00:19]}  fxg5+ {[%clk 0:01:21]} 40. Kxg5 {[%clk 0:00:17]}  Kf7 {[%clk 0:01:20]} 41. Kf4 {[%clk 0:00:18]}  Kf6 {[%clk 0:01:17]} 42. Be2 {[%clk 0:00:15]}  Bf7 {[%clk 0:01:11]} 43. Bd3 {[%clk 0:00:14]}  Bg8 {[%clk 0:01:11]} 44. Ke4 {[%clk 0:00:05]}  Kxg7 {[%clk 0:01:05]} 45. Ke5 {[%clk 0:00:05]}  Bh7 {[%clk 0:01:05]} 46. Be2 {[%clk 0:00:06]}  d3 {[%clk 0:01:05]} 47. Bf3 {[%clk 0:00:05]}  Bg8 {[%clk 0:01:05]} 48. Kd6 {[%clk 0:00:05]}  Bxc4 {[%clk 0:01:05]} 49. Kc6 {[%clk 0:00:05]}  Bxb5+ {[%clk 0:00:52]} 50. Kxb5 {[%clk 0:00:05]}  Kf6 {[%clk 0:00:53]} 51. Kc4 {[%clk 0:00:05]}  Ke5 {[%clk 0:00:53]} 52. Kxd3 {[%clk 0:00:06]}  b5 {[%clk 0:00:54]} 53. Kc3 {[%clk 0:00:06]}  Kd6 {[%clk 0:00:53]} 54. Be2 {[%clk 0:00:06]}  Kc6 {[%clk 0:00:53]} 55. Kb3 {[%clk 0:00:07]}  Kb6 {[%clk 0:00:51]} 56. Kc3 {[%clk 0:00:07]} 1/2-1/2


[Site "https://www.chess.com"]

[Event "Titled Tuesday Blitz May 23 Early 2023"]
[White "Kleiman, Jake"]
[Black "Djordjevic, Vuk"]
[WhiteFideId "2020041"]
[BlackFideId "902098"]
[WhiteElo "2642"]
[BlackElo "2452"]
[Result "0-1"]
[Round "10"]
[TimeControl "180+2"]
[Date "2023.05.23"]
[WhiteClock "0:00:07"]
[BlackClock "0:00:06"]

1. e4 {[%clk 0:02:57]}  d5 {[%clk 0:03:00]} 2. exd5 {[%clk 0:02:57]}  Qxd5 {[%clk 0:03:01]} 3. Nc3 {[%clk 0:02:56]}  Qd6 {[%clk 0:03:01]} 4. d4 {[%clk 0:02:56]}  Nf6 {[%clk 0:03:01]} 5. Nf3 {[%clk 0:02:56]}  c6 {[%clk 0:03:01]} 6. Ne5 {[%clk 0:02:56]}  Nbd7 {[%clk 0:03:01]} 7. f4 {[%clk 0:02:57]}  Nb6 {[%clk 0:03:00]} 8. Be3 {[%clk 0:02:57]}  g6 {[%clk 0:03:00]} 9. Qf3 {[%clk 0:02:50]}  Nbd5 {[%clk 0:02:56]} 10. Bd2 {[%clk 0:02:47]}  Nxc3 {[%clk 0:02:45]} 11. bxc3 {[%clk 0:02:40]}  Be6 {[%clk 0:02:36]} 12. Bd3 {[%clk 0:02:33]}  Bg7 {[%clk 0:02:35]} 13. O-O {[%clk 0:02:31]}  O-O {[%clk 0:02:35]} 14. a4 {[%clk 0:02:32]}  c5 {[%clk 0:02:29]} 15. Kh1 {[%clk 0:01:30]}  cxd4 {[%clk 0:01:47]} 16. cxd4 {[%clk 0:01:30]}  Qxd4 {[%clk 0:01:47]} 17. Qxb7 {[%clk 0:01:31]}  Nd5 {[%clk 0:01:00]} 18. Qb1 {[%clk 0:00:58]}  Bxe5 {[%clk 0:00:51]} 19. fxe5 {[%clk 0:00:58]}  Qxe5 {[%clk 0:00:52]} 20. Bh6 {[%clk 0:00:50]}  Rfb8 {[%clk 0:00:47]} 21. Qc1 {[%clk 0:00:50]}  Nb4 {[%clk 0:00:43]} 22. Bf4 {[%clk 0:00:50]}  Qd4 {[%clk 0:00:36]} 23. Bxb8 {[%clk 0:00:49]}  Nxd3 {[%clk 0:00:36]} 24. cxd3 {[%clk 0:00:50]}  Rxb8 {[%clk 0:00:36]} 25. Qc7 {[%clk 0:00:45]}  Rb2 {[%clk 0:00:26]} 26. Rg1 {[%clk 0:00:27]}  Bd5 {[%clk 0:00:15]} 27. Raf1 {[%clk 0:00:21]}  Rb7 {[%clk 0:00:08]} 28. Qc8+ {[%clk 0:00:17]}  Kg7 {[%clk 0:00:08]} 29. Qc2 {[%clk 0:00:15]}  Rb4 {[%clk 0:00:07]} 30. a5 {[%clk 0:00:14]}  Ra4 {[%clk 0:00:08]} 31. Qd2 {[%clk 0:00:11]}  Ra2 {[%clk 0:00:08]} 32. Qf4 {[%clk 0:00:11]}  Qxf4 {[%clk 0:00:05]} 33. Rxf4 {[%clk 0:00:12]}  Rxa5 {[%clk 0:00:05]} 34. Rd4 {[%clk 0:00:10]}  e6 {[%clk 0:00:05]} 35. h3 {[%clk 0:00:11]}  Ra3 {[%clk 0:00:05]} 36. Kh2 {[%clk 0:00:11]}  Kf6 {[%clk 0:00:05]} 37. Rf1+ {[%clk 0:00:10]}  Ke5 {[%clk 0:00:05]} 38. Rh4 {[%clk 0:00:10]}  f5 {[%clk 0:00:03]} 39. Rxh7 {[%clk 0:00:09]}  Ra2 {[%clk 0:00:02]} 40. Rg1 {[%clk 0:00:09]}  a5 {[%clk 0:00:03]} 41. Ra7 {[%clk 0:00:09]}  f4 {[%clk 0:00:03]} 42. Rf7 {[%clk 0:00:07]}  g5 {[%clk 0:00:03]} 43. Re1+ {[%clk 0:00:06]}  Kd6 {[%clk 0:00:03]} 44. Rg1 {[%clk 0:00:06]}  f3 {[%clk 0:00:04]} 45. Kg3 {[%clk 0:00:06]}  fxg2 {[%clk 0:00:04]} 46. Rg7 {[%clk 0:00:05]}  Rd2 {[%clk 0:00:04]} 47. Rxg5 {[%clk 0:00:05]}  Rxd3+ {[%clk 0:00:05]} 48. Kh2 {[%clk 0:00:06]}  a4 {[%clk 0:00:05]} 49. Rg3 {[%clk 0:00:06]}  Rd2 {[%clk 0:00:03]} 50. Ra1 {[%clk 0:00:06]}  Rd4 {[%clk 0:00:02]} 51. Raa3 {[%clk 0:00:05]}  Rb4 {[%clk 0:00:02]} 52. Rad3 {[%clk 0:00:05]}  Rb1 {[%clk 0:00:02]} 53. Rd2 {[%clk 0:00:04]}  Kc6 {[%clk 0:00:02]} 54. Rc2+ {[%clk 0:00:03]}  Kb5 {[%clk 0:00:02]} 55. Rd2 {[%clk 0:00:04]}  Rb4 {[%clk 0:00:02]} 56. Rf2 {[%clk 0:00:04]}  Rb3 {[%clk 0:00:02]} 57. Rg8 {[%clk 0:00:03]}  Kb4 {[%clk 0:00:03]} 58. Rb8+ {[%clk 0:00:03]}  Ka3 {[%clk 0:00:03]} 59. Rd8 {[%clk 0:00:03]}  Rb1 {[%clk 0:00:03]} 60. Ra8 {[%clk 0:00:03]}  Rh1+ {[%clk 0:00:03]} 61. Kg3 {[%clk 0:00:04]}  g1=Q+ {[%clk 0:00:04]} 62. Kh4 {[%clk 0:00:05]}  Rxh3+ {[%clk 0:00:04]} 63. Kxh3 {[%clk 0:00:04]}  Qg6 {[%clk 0:00:04]} 64. Rh8 {[%clk 0:00:04]}  Qd3+ {[%clk 0:00:03]} 65. Kh2 {[%clk 0:00:04]}  Qd4 {[%clk 0:00:03]} 66. Rh3+ {[%clk 0:00:04]}  Kb4 {[%clk 0:00:04]} 67. Kg1 {[%clk 0:00:03]}  Qg4+ {[%clk 0:00:04]} 68. Kh2 {[%clk 0:00:03]}  Qg5 {[%clk 0:00:04]} 69. Rg3 {[%clk 0:00:04]}  Qe5 {[%clk 0:00:05]} 70. Kh3 {[%clk 0:00:04]}  Kb5 {[%clk 0:00:05]} 71. Rg4 {[%clk 0:00:05]}  Qh5+ {[%clk 0:00:05]} 72. Kg3 {[%clk 0:00:05]}  Qe5+ {[%clk 0:00:05]} 73. Rff4 {[%clk 0:00:06]}  Qe3+ {[%clk 0:00:06]} 74. Kh4 {[%clk 0:00:07]}  e5 {[%clk 0:00:06]} 75. Rb4+ {[%clk 0:00:07]}  Kc5 {[%clk 0:00:06]} 76. Rxa4 {[%clk 0:00:08]}  Bf3 {[%clk 0:00:06]} 77. Rg3 {[%clk 0:00:07]}  Qh6# {[%clk 0:00:06]} 0-1


[Site "https://www.chess.com"]